Cogmind - Beta 15 @@@ ROGUE MODE // 2025.08.19 @ 20:04:00 Player: beans Result: Destroyed by D-53 Grenadier with Mini Grenade Launcher Performance ------------- Evolutions (1) 500 Regions Visited (3) 600 Robots Destroyed (19) 95 Value Destroyed (399) 399 Prototype IDs (0) 0 Alien Tech Used (0) 0 Bonus (0) 0 TOTAL SCORE: 1594 Bonus ------- None Cogmind --------- Core Integrity 0/400 Matter 51/700 Energy 88/100 System Corruption 0% Temperature Cool (0) Movement Core (150) Ox2 Location -9/Mines Parts ------- > --- POWER (1) -------- (None) > --- PROPULSION (2) --- (None) > --- UTILITY (4) ------ High-capacity Matter Pod High-capacity Matter Pod Signal Interpreter > --- WEAPON (2) ------- (None) > --- INVENTORY (5) ---- Welding Torch Peak State ------------ > --- POWER ------------ (None) > --- PROPULSION ------- Airjet Airjet > --- UTILITY ---------- High-capacity Matter Pod High-capacity Matter Pod High-capacity Matter Pod Signal Interpreter > --- WEAPON ----------- Missile Launcher > --- INVENTORY -------- Improved Light Cannon Improved Light Cannon Welding Torch [Rating: 13] Favorites ----------- Power Ion Engine Engine Ion Engine Propulsion Aluminum Leg Leg Aluminum Leg Hover Unit Airjet Utility High-capacity Matter Pod Storage High-capacity Matter Pod Processor Signal Interpreter Weapon Improved Light Cannon Energy Gun Medium Laser Ballistic Cannon Improved Light Cannon Launcher Missile Launcher Build | -11 -10 -9 -9 ------- Run | Yrd Mat Mat Min Slots Evolved 2 | . . 2 . Power . | . . . . Propulsion . | . . . . Utility 2 | . . 2 . Weapon . | . . . . Parts Attached 16 | 5 4 6 1 Power 1 | 1 . . . Engine 1 | 1 . . . Core . | . . . . Reactor . | . . . . Propulsion 4 | 2 . 2 . Treads . | . . . . Leg 2 | 2 . . . Wheel . | . . . . Hover 2 | . . 2 . Flight . | . . . . Utility 4 | . 1 3 . Device . | . . . . Storage 3 | . . 3 . Processor 1 | . 1 . . Hackware . | . . . . Protection . | . . . . Artifact . | . . . . Weapon 7 | 2 3 1 1 Energy Gun 2 | 2 . . . Energy Cannon . | . . . . Ballistic Gun . | . . . . Ballistic Cannon 4 | . 3 . 1 Launcher 1 | . . 1 . Special Weapon . | . . . . Impact Weapon . | . . . . Slashing Weapon . | . . . . Piercing Weapon . | . . . . Special Melee Weapon . | . . . . Unidentified Prototypes . | . . . . Parts Lost 11 | . 5 2 4 Power 1 | . 1 . . Propulsion 4 | . 2 2 . Utility 1 | . . . 1 Weapon 5 | . 2 . 3 Highest Loss Streak 4 | . 3 2 4 To Critical Strikes . | . . . . Average Backups 2 | . 1 2 3 Power . | . . . . Propulsion . | . . . . Utility . | . . . . Weapon 1 | . . 1 2 Tool/Special . | . . . . Unused Backups 1 | . . . 1 Power . | . . . . Propulsion . | . . . . Utility . | . . . . Weapon . | . . . . Tool/Special 1 | . . . 1 Average Slot Usage (%) 56 | . 58 64 52 Engine 3 | . 5 . . Leg 10 | . 19 . . Hover 1 | . . 13 . Storage 14 | . . 30 32 Processor 7 | . 4 11 11 Energy Gun 4 | . 7 . . Ballistic Cannon 14 | . 19 4 8 Peak Build Rating 13 | 5 7 13 9 Average Rating 5 | 3 5 9 5 On Entrance 3 | . 5 3 4 Naked Turns . | . . . . Heaviest Build 18 | 8 8 18 16 Greatest Support 20 | 20 20 16 3 Greatest Overweight (x) 5 | . 1 5 5 Average Overweight (x) 1 | . . 1 4 Largest Inventory Capacity 5 | 5 5 5 5 Average Capacity 5 | 5 5 5 5 Most Carried 5 | 4 5 4 4 Average Carried 2 | . 1 2 3 Final Capacity 5 | 5 5 5 5 Final Carried 5 | . 5 4 1 Class Distribution -------------------- 100% | Mutant Dominant Class ---------------- Mutant | -10/Materials Mutant | -9/Materials Mutant | -9/Mines Resources | -11 -10 -9 -9 ----------- Run | Yrd Mat Mat Min Matter Collected 580 | 216 244 23 97 Remotely . | . . . . Salvage Created 406 | . 319 65 22 Parts 28 | . 19 7 2 Haulers Intercepted 2 | . 2 . . Recyclers Shooed 1 | . 1 . . Parts Field Recycled . | . . . . Retrieved Matter . | . . . . Parts Self-Destructed . | . . . . Prevented . | . . . . Kills | -11 -10 -9 -9 ------- Run | Yrd Mat Mat Min Combat Hostiles Destroyed 11 | . 8 2 1 Cannons 8 | . 8 . . AOE 3 | . . 2 1 Classes Destroyed 9 | . 7 1 1 Worker 2 | . 2 . . Builder 2 | . 1 . 1 Hauler 2 | . 2 . . Recycler 1 | . 1 . . Watcher 2 | . 2 . . Swarmer 3 | . 3 . . Grunt 6 | . 5 1 . Sentry 1 | . . 1 . Assembled 1 | . . . 1 Best Kill Streak 7 | . 7 2 1 Combat Bots Only 5 | . 5 2 1 Max Kills in Single Turn 1 | . 1 1 1 Gunslinging . | . . . . Exploded 1 | . . 1 1 Melee . | . . . . Uniques/NPCs Destroyed . | . . . . Combat | -11 -10 -9 -9 -------- Run | Yrd Mat Mat Min Hostile Shots Fired 141 | . 101 25 15 Missed 43 | . 32 10 1 Hits 98 | . 69 15 14 Melee 1 | . . . 1 Projectile 97 | . 69 15 13 AOE 13 | . . . 13 Critical Strikes 2 | . 1 1 . Damage Taken 1614 | . 777 209 628 Core 529 | . 126 95 308 Absorbed by Shields . | . . . . Core Remaining (%) 74 | 100 49 . . Volleys Fired 63 | 1 52 3 7 Largest 2 | 2 2 1 2 Hottest 90 | 90 90 36 69 Shots Fired 114 | 2 100 3 9 Gun 4 | 2 2 . . Cannon 104 | . 98 . 6 Launcher 6 | . . 3 3 Special . | . . . . Kinetic 104 | . 98 . 6 Thermal 4 | 2 2 . . Explosive 6 | . . 3 3 Electromagnetic . | . . . . Robot Hit Streak 12 | 1 12 4 5 Robot Miss Streak 4 | 1 4 . 1 Penetration Max . | . . . . Secondary Targets . | . . . . Shots Hit Robots 62 | 1 53 2 6 Core Hits 22 | . 17 2 3 Critical Kills . | . . . . Critical Parts Destroyed . | . . . . Critical Strikes 2 | . 2 . . Blast 2 | . 2 . . Melee Attacks . | . . . . Impact . | . . . . Slashing . | . . . . Piercing . | . . . . Sneak Attacks . | . . . . Combat Hostiles . | . . . . Follow-up Attacks . | . . . . Damage Inflicted 1511 | 12 1104 182 213 Guns 35 | 12 23 . . Cannons 1166 | . 1081 . 85 Explosions 310 | . . 182 128 Melee . | . . . . Ramming . | . . . . Kinetic 1166 | . 1081 . 85 Thermal 35 | 12 23 . . Explosive 310 | . . 182 128 Electromagnetic . | . . . . Impact . | . . . . Slashing . | . . . . Piercing . | . . . . Highest Corruption . | . . . . Average Corruption . | . . . . Corruption Purged . | . . . . Corruption Blocked . | . . . . Overload Shots . | . . . . Overflow Damage 33 | . 33 . . Projectiles 33 | . 33 . . Explosions . | . . . . Melee . | . . . . Knockbacks 17 | . 17 . . Impact . | . . . . Kinetic 16 | . 16 . . Secondary 1 | . 1 . . Self-Inflicted Damage 68 | . . . 68 Shots 2 | . . . 2 Rammed . | . . . . Targets Rammed . | . . . . Kicked . | . . . . Crushed . | . . . . Highest Temperature 297 | 30 297 12 . Average Temperature 132 | 20 138 8 . Received Heat Transfer 432 | . 339 93 . Effects 2 | . 2 . . Interference 2 | . 2 . . Siege Activations . | . . . . Martial Activations . | . . . . Shielding Activations . | . . . . Robots Disrupted . | . . . . Combat Hostiles . | . . . . Robots Corrupted . | . . . . Combat Hostiles . | . . . . Parts Fried . | . . . . Impact Corruptions . | . . . . Robots Melted . | . . . . Combat Hostiles . | . . . . Parts Melted . | . . . . Heat Transferred 99 | 37 62 . . Parts Sabotaged . | . . . . Parts Stolen . | . . . . Parts Stripped . | . . . . Power Chain Reactions . | . . . . Alert | -11 -10 -9 -9 ------- Run | Yrd Mat Mat Min Maximum Alert Level . | . . . . Low Security (%) 100 | 100 100 100 100 Level 1 . | . . . . Level 2 . | . . . . Level 3 . | . . . . Level 4 . | . . . . Level 5 . | . . . . High Security . | . . . . Max Security . | . . . . Peak Influence 199 | . 199 95 25 Initial 51 | . . 51 25 Average 65 | . 116 50 2 Influence Increases 452 | . 351 74 27 Destroy 0b10 Robot/C 200 | . 160 40 . Destroy 0b10 Robot/NC 45 | . 40 . 5 Destroy Leader 58 | . 48 10 . Disable Machine 60 | . 60 . . Destroy Structure 59 | . 13 24 22 Lose Combat Pursuer 30 | . 30 . . Influence Decreases 452 | . 228 132 92 Entered New Map 112 | . . 72 40 Time Decay 252 | . 178 40 34 Lost Part 88 | . 50 20 18 Squads Dispatched 1 | . 1 . . Investigation . | . . . . Extermination . | . . . . Reinforcement 1 | . 1 . . Assault . | . . . . Garrison . | . . . . Intercept . | . . . . Searches Triggered . | . . . . Construction Impeded . | . . . . Haulers Reinforced . | . . . . Active Scanning Responses . | . . . . Cargo Convoy Interrupts . | . . . . Stealth | -11 -10 -9 -9 --------- Run | Yrd Mat Mat Min Distress Signals 5 | . 3 2 . Communications Jammed . | . . . . Distress Signals . | . . . . Times Spotted 32 | . 21 6 5 Peak Tracking Total 6 | . 6 5 4 Tactical Retreats 1 | . 1 . . Traps | -11 -10 -9 -9 ------- Run | Yrd Mat Mat Min Traps Triggered . | . . . . Indirectly . | . . . . Trap Hack Attempts . | . . . . Triggered . | . . . . Disarmed . | . . . . Reprogrammed . | . . . . Reused . | . . . . Traps Extracted . | . . . . Installed . | . . . . Triggered . | . . . . Machines | -11 -10 -9 -9 ---------- Run | Yrd Mat Mat Min Machines Disabled 4 | . 4 . . Max in Single Turn 1 | . 1 . . Machines Repaired . | . . . . Machines Dismantled . | . . . . Machines Sabotaged . | . . . . Overloaded Fab Kills . | . . . . Hacking | -11 -10 -9 -9 --------- Run | Yrd Mat Mat Min Machines Accessed . | . . . . Terminals . | . . . . Fabricators . | . . . . Repair Stations . | . . . . Recycling Units . | . . . . Scanalyzers . | . . . . Garrison Access . | . . . . Total Hacks . | . . . . Successful . | . . . . Failed . | . . . . Catastrophic . | . . . . Database Lockouts . | . . . . Manual . | . . . . Terminals . | . . . . Fabricators . | . . . . Repair Stations . | . . . . Recycling Units . | . . . . Scanalyzers . | . . . . Garrison Access . | . . . . Terminal Hacks . | . . . . Fabricator Hacks . | . . . . Repair Station Hacks . | . . . . Recycling Unit Hacks . | . . . . Scanalyzer . | . . . . Garrison Access Hacks . | . . . . Unauthorized Hacks . | . . . . Terminals . | . . . . Fabricators . | . . . . Repair Stations . | . . . . Recycling Units . | . . . . Scanalyzers . | . . . . Garrison Access . | . . . . Data Cores Recovered . | . . . . Used . | . . . . Hacking Detections . | . . . . Full Trace Events . | . . . . Feedback Events . | . . . . Feedback Blocked . | . . . . Robot Schematics Acquired . | . . . . Robots Built . | . . . . Authchips . | . . . . Time . | . . . . Total Robot Build Rating . | . . . . Part Schematics Acquired . | . . . . Parts Built . | . . . . Authchips . | . . . . Time . | . . . . Total Part Build Rating . | . . . . Parts Repaired . | . . . . Time . | . . . . Parts Recycled . | . . . . Recycled Matter . | . . . . Retrieved Matter . | . . . . Retrieved Components . | . . . . Parts Scanalyzed . | . . . . Part Schematics Acquired . | . . . . Parts Damaged . | . . . . Bothacking | -11 -10 -9 -9 ------------ Run | Yrd Mat Mat Min Used RIF Installer . | . . . . Robots Hacked . | . . . . Non-combat . | . . . . Combat . | . . . . Robot Hacks Applied . | . . . . Relay Couplers Released . | . . . . Fabnet Peak Effective % . | . . . . Robots Rewired . | . . . . Allies Hacked . | . . . . Hacks Repelled . | . . . . Allies | -11 -10 -9 -9 -------- Run | Yrd Mat Mat Min Total Allies . | . . . . Largest Group . | . . . . Highest-Rated Group . | . . . . Highest-Rated Ally . | . . . . Total Orders . | . . . . Ally Attacks . | . . . . Total Damage . | . . . . Kills . | . . . . Allies Corrupted . | . . . . Allies Melted . | . . . . Intel | -11 -10 -9 -9 ------- Run | Yrd Mat Mat Min Active Infowar (turns) . | . . . . Robot Analysis Total . | . . . . Derelict Logs Recovered 1 | . . . 1 Drone Launches . | . . . . Drone Recoveries . | . . . . Exploration | -11 -10 -9 -9 ------------- Run | Yrd Mat Mat Min Turns Passed 1003 | 56 512 88 347 Spaces Moved 504 | 49 282 52 121 Core 155 | 21 3 10 121 Treads . | . . . . Legs 307 | 28 279 . . Wheels . | . . . . Hover 42 | . . 42 . Flight . | . . . . Fastest Speed 50 | 50 100 56 200 Average Speed 154 | 90 119 128 271 Slowest Speed 300 | 120 120 300 300 Overloaded Moves . | . . . . Propulsion Burnouts . | . . . . Robots Hopped . | . . . . Potential Cave-ins . | . . . . Cave-ins Triggered . | . . . . Exploration Rate (%) 25 | 4 56 11 30 Regions Visited 3 Branch Regions 1 Pre-discovered Areas 1 | . . . 1 Known Exits Taken 2 | . 1 1 . Unknown Exits Taken 1 | 1 . . . Scrap Searched 2 | . . . 2 Spaces Dug 10 | . . . 10 Terrain Destroyed 59 | . 11 22 26 Melee . | . . . . Projectile 11 | . 11 . . AOE 48 | . . 22 26 Terrain Rammed . | . . . . Walls Destroyed . | . . . . Machines Disabled . | . . . . Actions | -11 -10 -9 -9 --------- Run | Yrd Mat Mat Min Total 620 | 59 357 71 133 Wait 14 | . 9 5 . Move 501 | 48 281 51 121 Hop . | . . . . Pick Up 18 | 5 9 4 . Fast Attach . | . . . . Attach 19 | 5 4 6 4 Detach 2 | . . 1 1 Swap . | . . . . Drop 3 | . 2 1 . Fire 63 | 1 52 3 7 Melee . | . . . . Ram . | . . . . Kick . | . . . . Crush . | . . . . Escape Stasis . | . . . . Rewire . | . . . . Trap . | . . . . Miscellaneous . | . . . . Route ------- -11/Scrapyard -10/Materials -9/Materials -9/Mines (discovered 1 exit: [*Mat]) History --------- Turn | Location | Event 4 | -11/Scrapyard | Discovered new exit (range 16) 57 | -11/Scrapyard | Entered Materials 294 | -10/Materials | Lost 3 parts (1p1n1w) 311 | -10/Materials | Build established: Mutant 360 | -10/Materials | Discovered new exit (range 5) 557 | -10/Materials | Derelicts attacked the area 568 | -10/Materials | Identified exit to Materials 569 | -10/Materials | Core integrity fell below 50% 569 | -10/Materials | Entered another Materials area 569 | -9/Materials | Evolved 2 slots: Utility x2 643 | -9/Materials | Discovered new exit (range 15) 655 | -9/Materials | Identified exit to Mines 657 | -9/Materials | Entered Mines 785 | -9/Mines | Discovered new exit (range 10) 972 | -9/Mines | Assembled infested the area 994 | -9/Mines | Core integrity fell below 50% 1000 | -9/Mines | Core integrity fell below 20% 1004 | -9/Mines | Destroyed by D-53 Grenadier with Mini Grenade Launcher Last Messages --------------- Acquired 22 matter. Acquired 1 matter. K-01 Serf collects debris. Acquired derelict log, extracted data. World map updated: -8/Materials. EXIT=FOUND K-01 Serf collects debris. ALERT: Infestation in the mines, dispatching Demolisher response squad. as-63948 powers down. as-67823 powers down. as-53577 destroyed. C-30 ARC bursts open, deploying its payload. D-53 Grenadier unfolds itself. Hcp. Matter Pod destroyed. T-07 Excavator destroyed. Imp. Light Cannon destroyed. The unstable cave ceiling collapses. Imp. Light Cannon destroyed. Missile Launcher destroyed. Map ----- +----------------------------------------------------+ | ??????????????????????????????## ?????????????? | | ?????????????????????????????## #????????????? | | ????????????????????????????## #???????????? | | ???????????????????????????? < #??????????? | | ???????????????????????????? ####??????? | | ??????????????????????????? ##?????? | | ???????????????####????????? ##????? | | ??????????????## ##???????????# ##???? | | ??????????????# #????????????# ##??? | | ??????????????# ##????????????# ### ##?? | | ??????????????# ##??????????????### ##? | | ??????????????# ##????????????## ## | | ??????????????# #???##?????### ## | | ??????????????## ##??## ??## ###### | | ?????????######## ###???# ## ##????## | | ?????????# ! [!] #?????# #??????## | | ?????????# ###### #??????# ##???????# | | ????????????????# #??????######### ####???????## | | ????????????????# ####### ###### #?????????## | | ????????????????# [ % t #?????????# | | ????????????????# !!! d # ###?#####??## | | ??????????? ###### # d # ##### #### # | | ?????????# ???## # # | | ?????????# ???# ###### | | ?????????## ??## #????## | | ??????????##?## ## @ #?????##### # | | ??????????????## #?????????### ## | | ???????????????# ##???????????## #? | | ???????????????## #?????????????# ## | | ????????????????## ###?????????????# # | | ?????????????????## #???????????????# # | | ??????????????????# ##???????????????# # | | ??????????????????####### t #????????????????# # | | ????????????????????????# ##????????????????##### | | ????????????????????????# #?????????????????????? | | ????????????????????????# #?????????????????????? | | ???????????????????????? a ?????????????????????? | | ????????????????????????# ?????????????????????? | | ????????????????????????# aa?????????????????????? | | ????????????????????????## ?????????????????????? | | ??????????????????????????# ?????????????????????? | | ???????????????????????????# ????????????????????? | | ???????????????????????????? ????????????????????? | | ?????????????????????????????????????????????????? | | ?????????????????????????????????????????????????? | | ?????????????????????????????????????????????????? | | ?????????????????????????????????????????????????? | | ?????????????????????????????????????????????????? | | ?????????????????????????????????????????????????? | | ?????????????????????????????????????????????????? | +----------------------------------------------------+ Best States ------------- Heat Dissipation 28 Energy Generation 10 Energy Capacity 250 Matter Stores 266 Matter Capacity 900 Sight Range 16 Terrain Scan Density 10 Evasion (%) 55 Item Schematics ----------------- None Robot Schematics ------------------ None Fabricated ------------ Nothing Repaired ---------- Nothing Alien Tech Used ----------------- None Achievements -------------- None Challenges ------------ None Game ------ Seed HeatPersonalInterpreter Manual? 0 Play Time 00:06:47 Cumulative 95.9 hours Start 2025.08.19 @ 19:58:18 End 2025.08.19 @ 20:04:00 Sessions 1 Manual Loads 0 Difficulty Rogue Special Mode None Game No. 370 Rogue 370 Adventurer 0 Explorer 0 Win Type - Total 0 Types 0/0/0/0/0/0/0/0/0/0 Lore% 43 Gallery% 40 Achievement% 30 Wizard Run 0 Options --------- Layout 2 ASCII 0 Keyboard 0 Movement Mouse Keybinds 0 Fullscreen 2 Font 24/Smallcaps Map View 50x44 Zoom Use 0% Tactical HUD 0 Map Filters NONE Filters NONE Steam 1 RUN: e132c230-2dd5-4934-9558-703528c337b6